[Event "44th Chess Olympiad Open 2022"]
[Site "Chennai"]
[Date "2022.08.06"]
[Round "8.7"]
[White "Fier, Alexandr"]
[Black "Kuzubov, Yuriy"]
[Result "1-0"]
[WhiteElo "2567"]
[BlackElo "2642"]
[Annotator "TA"]
[PlyCount "159"]
[EventDate "2022.??.??"]
[TimeControl "60"]

{[%evp 22,159,34,43,41,33,33,27,31,35,41,29,33,32,30,32,35,29,29,22,40,20,31,
28,27,27,31,28,33,32,37,27,31,0,26,0,0,0,29,29,29,30,42,42,42,42,42,43,30,33,
108,100,100,100,100,100,106,103,103,91,94,94,94,94,94,94,82,38,38,20,20,20,20,
20,74,20,20,20,27,27,61,29,29,29,29,29,72,8,8,8,8,8,8,8,8,8,8,8,8,8,8,8,8,8,8,
8,8,8,8,43,68,68,68,68,834,834,29949,1706,29964,29966,29965,29967,29966,29968,
29968,29969,29970,29972,29970,29970,29973,29968,29965,29967,29990,29991,29991,
29992,29993,29993]} 1. e4 {[%emt 0:00:03]} e5 {[%emt 0:00:08]} 2. Nf3 {[%emt 0:
00:00]} Nf6 {[%emt 0:00:15][%cal Yg8f6,Yf6e4,Ye4d2]} 3. Nxe5 {[%emt 0:00:00]}
d6 {[%emt 0:00:04]} 4. Nf3 {[%emt 0:00:05]} Nxe4 {[%emt 0:00:04]} 5. d4 {
[%emt 0:00:04]} d5 {[%emt 0:00:11]} 6. Bd3 {[%emt 0:00:04]} Be7 {[%emt 0:00:00]
} 7. O-O {[%emt 0:00:05]} Bf5 {[%emt 0:01:26]} 8. Re1 {[%emt 0:00:04]} Nc6 {
[%emt 0:00:45]} 9. Nbd2 {[%emt 0:00:04]} Nxd2 {[%emt 0:01:01]} 10. Qxd2 {
[%emt 0:00:05]} Bxd3 {[%emt 0:00:06]} 11. Qxd3 {[%emt 0:00:05]} O-O {[%emt 0:
00:00]} 12. c3 {[%emt 0:00:09]} h6 {[%emt 0:02:04] C42: Petroff Defence: 3
Nxe5 and unusual White 3rd moves.} 13. Bf4 {[%emt 0:00:37]} Bd6 {[%emt 0:00:23]
} 14. Be5 {[%emt 0:00:03]} Qd7 {[%emt 0:02:43] White has an edge.} 15. Re2 {
[%emt 0:00:05]} Rfe8 {[%emt 0:01:12]} 16. Rae1 {[%emt 0:00:05] [#]} Rad8 $146 {
[%emt 0:04:14]} ({Predecessor:} 16... Bxe5 17. dxe5 Nd8 18. Nd4 Ne6 19. Qe3
Rac8 20. f4 Nxd4 21. cxd4 b6 22. Rd1 c5 {½-½ (33) Schakel,C (2408)-Triay
Moll,L (2360) ICCF email 2017}) 17. Bxd6 {[%emt 0:06:24]} Rxe2 {[%emt 0:00:08]}
18. Qxe2 {[%emt 0:00:36]} Qxd6 {[%emt 0:00:05]} 19. h4 {[%emt 0:04:32]} (19.
Nh4 {is interesting.} Kf8 20. Nf5 Qf6 21. Ne3) 19... Qd7 {[%emt 0:07:19]} 20.
g3 {[%emt 0:04:35]} a6 {[%emt 0:02:06]} 21. Nd2 {[%emt 0:02:16]} Nb8 {[%emt 0:
00:00][%cal Yc6b8,Yb8d7,Yd7f6,Yf6e4]} 22. Nb3 {[%emt 0:02:41][%cal Yd2b3,Yb3c1,
Yc1d3,Yd3f4]} b6 {[%emt 0:02:53]} 23. Nc1 {[%emt 0:00:07]} Qd6 {[%emt 0:03:01]}
24. Nd3 {[%emt 0:04:04]} Nd7 {[%emt 0:00:08]} 25. Nf4 {[%emt 0:01:20]} a5 {
[%emt 0:00:35]} 26. Kg2 {[%emt 0:07:31]} Nf6 {[%emt 0:00:00]} 27. Qb5 {[%emt 0:
00:19]} Qd7 {[%emt 0:01:15]} 28. a4 {[%emt 0:02:04]} Qxb5 {[%emt 0:12:49]} 29.
axb5 $11 {[%emt 0:00:03] Endgame KRN-KRN} Ne4 {[%emt 0:00:09]} (29... g5 $5 {
[%cal Rg5f4]} 30. Nd3 Re8 $11) 30. f3 {[%emt 0:00:00]} Nd6 {[%emt 0:00:05]} 31.
Nxd5 {[%emt 0:00:03]} Nxb5 {[%emt 0:00:07]} 32. Re5 {[%emt 0:00:03][%cal Yd5f6]
} Kf8 {[%emt 0:04:05] [#]} 33. Nxb6 $1 {[%emt 0:01:52]} Nxc3 {[%emt 0:00:50]}
34. Nd7+ {[%emt 0:01:19]} Rxd7 {[%emt 0:00:00]} 35. bxc3 $14 {[%emt 0:00:03]
KR-KR} a4 {[%emt 0:00:47]} (35... c5 $1 $14) 36. Ra5 $16 {[%emt 0:00:05] White
is more active.} c5 {[%emt 0:03:30]} 37. Rxa4 {[%emt 0:00:13]} cxd4 {[%emt 0:
00:05]} 38. Rxd4 {[%emt 0:00:04]} Ra7 {[%emt 0:00:22]} 39. Kf2 {[%emt 0:09:29]}
Ra3 {[%emt 0:00:24]} 40. Rc4 {[%emt 0:00:00]} Ke7 {[%emt 0:01:34]} 41. Ke3 {
[%emt 0:30:06]} Kd6 {[%emt 0:32:12]} 42. h5 {[%emt 0:05:31]} g6 {[%emt 0:05:36]
} 43. hxg6 {[%emt 0:01:32]} fxg6 {[%emt 0:00:04]} 44. Kd3 {[%emt 0:00:07]} h5 {
[%emt 0:01:10]} 45. Rc8 {[%emt 0:00:00] And now Rg8 would win.} Ra5 {[%emt 0:
05:19]} 46. Ke3 {[%emt 0:02:29]} Re5+ {[%emt 0:04:29]} 47. Kf2 {[%emt 0:00:04]}
Kd7 {[%emt 0:01:39]} (47... Ke7 $11 {keeps the balance.}) 48. Rc4 {[%emt 0:02:
06]} ({Better is} 48. Rg8 $16) 48... Ra5 $11 {[%emt 0:02:32]} 49. Ke3 {[%emt 0:
05:27]} Kd6 {[%emt 0:06:05]} 50. Rb4 {[%emt 0:07:21] Threatens to win with
Rb6+.} Re5+ {[%emt 0:12:09]} 51. Kd3 {[%emt 0:03:21] Hoping for Rb6+.} Rg5 {
[%emt 0:07:10]} 52. g4 {[%emt 0:00:00]} Ke6 {[%emt 0:01:15]} 53. Re4+ {[%emt 0:
08:12]} Kd6 {[%emt 0:04:17]} 54. gxh5 {[%emt 0:02:42]} (54. c4 $16) 54... gxh5
{[%emt 0:00:24]} 55. Ke3 {[%emt 0:00:34]} Rg8 {[%emt 0:00:47]} 56. Kf2 {
[%emt 0:01:15]} Rc8 {[%emt 0:00:00]} 57. c4 {[%emt 0:00:02]} Rh8 {[%emt 0:00:
28]} 58. Kg3 {[%emt 0:06:05]} Rg8+ {[%emt 0:00:05]} 59. Kh4 {[%emt 0:00:03]}
Rf8 $1 {[%emt 0:00:07]} 60. f4 {[%emt 0:00:18]} Rf5 {[%emt 0:00:17]} 61. Kg3 {
[%emt 0:00:04]} Rf8 {[%emt 0:00:00]} 62. Re5 {[%emt 0:00:12]} h4+ $1 {[%emt 0:
00:36]} 63. Kg4 {[%emt 0:00:03]} Rh8 $1 {[%emt 0:00:09]} 64. c5+ {[%emt 0:08:
41]} Kc6 {[%emt 0:00:21]} 65. Kh3 {[%emt 0:00:03]} Kb5 {[%emt 0:00:51]} 66. f5
{[%emt 0:00:00] f6 would kill now.} Rh5 $1 {[%emt 0:00:00]} 67. Kg4 {[%emt 0:
00:00]} Rh8 $2 {[%emt 0:00:00] [#] This costs Black the game.} (67... Rh7 $14)
68. Re2 $1 $18 {[%emt 0:00:00] White wants to mate with f6.} h3 {[%emt 0:00:00]
} 69. Rh2 {[%emt 0:00:00] Threatening mate with f6.} Kxc5 {[%emt 0:00:00]} 70.
f6 {[%emt 0:00:00] White mates.} Rg8+ {[%emt 0:00:00]} 71. Kf5 {[%emt 0:00:00]}
Rg3 {[%emt 0:00:00]} 72. Kf4 {[%emt 0:00:00]} Rg6 {[%emt 0:00:00] [#]} 73. Ke5
$1 {[%emt 0:00:00]} Rg5+ {[%emt 0:00:00]} 74. Ke6 {[%emt 0:00:00]} Rg3 {
[%emt 0:00:00]} 75. Rf2 {[%emt 0:00:00]} Rg6 {[%emt 0:03:58]} 76. Kf5 {[%emt 0:
00:00]} Rg2 {[%emt 0:00:53]} 77. Rf3 {[%emt 0:00:00]} ({Weaker is} 77. Rf1 Kd6
$11) 77... h2 {[%emt 0:00:50]} 78. f7 {[%emt 0:00:00]} h1=Q {[%emt 0:01:03]}
79. f8=Q+ {[%emt 0:00:00]} Kd5 {[%emt 0:00:39]} 80. Qd8+ {[%emt 0:00:00]
Weighted Error Value: White=0.10 (very precise) /Black=0.08 (flawless)} 1-0

[Event "44th Chess Olympiad Open 2022"]
[Site "Chennai"]
[Date "2022.08.06"]
[Round "8.7"]
[White "Diamant, Andre"]
[Black "Onyshchuk, Volodymyr"]
[Result "0-1"]
[WhiteElo "2538"]
[BlackElo "2612"]
[Annotator "TA"]
[PlyCount "100"]
[EventDate "2022.??.??"]
[TimeControl "60"]

{[%evp 16,100,61,60,64,16,49,48,83,75,84,81,71,77,82,61,87,86,84,33,36,22,17,
17,23,18,20,25,58,46,43,48,58,71,71,64,71,0,0,0,0,-177,-172,-187,-42,-55,-85,
-80,0,-102,-108,-112,-99,-508,-508,-482,-474,-358,-229,-560,-564,-512,-310,
-569,-483,-482,-476,-516,-445,-512,-502,-496,-466,-547,-487,-963,-863,-1167,
-708,-12840,-6123,-29969,-29954,-29995,-29996,-29996,-29997]} 1. Nf3 {[%emt 0:
00:00]} Nf6 {[%emt 0:00:26]} 2. c4 {[%emt 0:00:25]} g6 {[%emt 0:00:25]} 3. Nc3
{[%emt 0:00:17]} Bg7 {[%emt 0:00:17]} 4. e4 {[%emt 0:00:29]} d6 {[%emt 0:00:26]
} 5. d4 {[%emt 0:00:21][%cal Yd2d4,Yd4d5]} O-O {[%emt 0:00:10]} 6. Be2 {
[%emt 0:01:16]} c6 {[%emt 0:00:26]} 7. O-O {[%emt 0:01:23]} e5 {[%emt 0:00:07]}
8. d5 {[%emt 0:07:01]} Na6 {[%emt 0:02:54]} 9. Bg5 {[%emt 0:03:33]} h6 {
[%emt 0:01:57] E94: King's Indian: Classical: 6 Be2 e5 7 0-0: Various Black
7th moves.} 10. Bh4 {[%emt 0:00:31]} (10. Be3 $14) 10... Bd7 $5 {[%emt 0:17:59]
Exploring less charted territory.} 11. Nd2 {[%emt 0:08:27]} c5 {[%emt 0:07:46]
White is slightly better.} 12. a3 {[%emt 0:10:07]} Qe7 {[%emt 0:00:00]} 13. Rb1
{[%emt 0:02:19]} Rfc8 {[%emt 0:03:02]} 14. b4 {[%emt 0:06:57]} Qf8 {[%emt 0:01:
19] [#]} 15. Kh1 $146 {[%emt 0:05:00]} ({Predecessor:} 15. Nb5 b6 16. Kh1 Nc7
17. Nc3 Na6 18. Rb3 Be8 19. Bxf6 Bxf6 20. Bg4 {½-½ (52) Damljanovic,B (2534)
-Martinovic,S (2448) Belgrade 2000}) 15... Nh7 {[%emt 0:00:00]} 16. f3 {
[%emt 0:09:11]} h5 {[%emt 0:02:07]} 17. bxc5 {[%emt 0:10:17]} (17. Bd3 $16)
17... Nxc5 $14 {[%emt 0:00:51]} 18. Nb3 {[%emt 0:07:13]} Na4 {[%emt 0:00:00]}
19. Nxa4 {[%emt 0:02:00]} Bxa4 {[%emt 0:00:02]} 20. Qd2 {[%emt 0:00:20]} b6 {
[%emt 0:01:01]} 21. Qb4 {[%emt 0:01:41]} Qe8 {[%emt 0:02:04]} 22. Bf2 {[%emt 0:
01:55]} (22. Qxd6 $2 Bf8 23. Be7 Qxe7 $19) 22... Bh6 {[%emt 0:02:36]} 23. Nc1 {
[%emt 0:18:23]} (23. Qxd6 $2 Bf8 24. Qb4 Bxb4 $19) 23... Bd7 {[%emt 0:00:00]}
24. Na2 {[%emt 0:00:00]} (24. Qxd6 $2 Bf8 25. Rxb6 Bxd6 $19) 24... Qe7 {
[%emt 0:01:50]} 25. a4 {[%emt 0:00:00]} h4 {[%emt 0:14:58]} 26. h3 {[%emt 0:00:
00]} (26. a5 $16) 26... Nf6 {[%emt 0:00:15]} 27. Bxh4 {[%emt 0:00:00]} Kg7 {
[%emt 0:03:14]} 28. g4 $2 {[%emt 0:00:00]} (28. Bf2 $1 $11 {and White has
nothing to worry.}) 28... Rh8 $19 {[%emt 0:07:44] White must now prevent ...
Bf4.} 29. Kg2 {[%emt 0:01:30] [#]} (29. g5 $2 Bxg5 $1 30. Kg2 Bxh4 $19) 29...
Bf4 {[%emt 0:00:00]} ({Black should try} 29... Be3 $1 $19 {( -> ... Nh5)} 30.
Bg3 Bc5) 30. Bf2 {[%emt 0:00:00] [#]} Rxh3 {[%emt 0:03:18]} 31. Rh1 {[%emt 0:
00:00] [#] Prevents Rh2+.} (31. Kxh3 $2 {is the wrong capture.} Rh8+ 32. Kg2
Rh2+ 33. Kg1 Qf8 $19) 31... Rhh8 {[%emt 0:02:28] Black is more active.} (31...
Rh7 $1 $17 {aiming for ...Rah8.} 32. Rxh7+ Nxh7) 32. Qb3 {[%emt 0:07:18] [#]} (
32. Nc3 $11 {remains equal.}) 32... Bxg4 $1 $17 {[%emt 0:07:12]} 33. fxg4 {
[%emt 0:00:00]} Nxe4 {[%emt 0:00:02] Hoping for ...Nd2.} 34. Nc3 $2 {[%emt 0:
05:42] Loses the game.} (34. Rbg1 $17 {is a better chance.}) 34... Nd2 $1 $19 {
[%emt 0:04:48][%csl Yb1,Yb3]} 35. Qc2 {[%emt 0:00:07]} Nxb1 {[%emt 0:00:14]}
36. Qxb1 {[%emt 0:00:00]} Rxh1 {[%emt 0:00:09] Chess con chili.} 37. Kxh1 {
[%emt 0:00:00]} (37. Qxh1 {nothing else works.} Rh8 38. Qg1) 37... Rh8+ {
[%emt 0:00:24]} 38. Kg1 {[%emt 0:00:00]} Qg5 {[%emt 0:03:57][%cal Yh8h1]} 39.
Qe4 {[%emt 0:01:37] Prevents Rh1+.} (39. Ne4 {was worth a try.} Qh6 40. Bf3)
39... f5 {[%emt 0:00:56]} ({Weaker is} 39... Qh6 40. Qg2 $17) 40. Qf3 {[%emt 0:
00:00]} e4 {[%emt 0:00:52]} ({Avoid the trap} 40... Qh6 $2 41. Qg2 fxg4 42.
Bxg4 $19) 41. Bd4+ {[%emt 0:11:55]} Kf7 {[%emt 0:09:47]} 42. Nxe4 {[%emt 0:00:
00]} fxe4 {[%emt 0:00:17]} 43. Qxe4 {[%emt 0:00:00]} Be5 {[%emt 0:00:00]} 44.
Bf2 {[%emt 0:07:34]} Kg7 {[%emt 0:11:19] ...Qc1+ is the strong threat.} 45. a5
{[%emt 0:02:40]} (45. Qe3 $142 Qxe3 46. Bxe3) 45... bxa5 {[%emt 0:02:42]} 46.
c5 {[%emt 0:00:00]} dxc5 {[%emt 0:00:06]} 47. Qa4 {[%emt 0:00:00]} Qc1+ {
[%emt 0:00:35]} 48. Bd1 {[%emt 0:00:00]} Rf8 {[%emt 0:00:41] Black mates.} 49.
Bh4 {[%emt 0:00:00]} Qe3+ {[%emt 0:00:33]} 50. Kg2 {[%emt 0:00:00]} Qd2+ {
[%emt 0:00:06] Weighted Error Value: White=0.94/Black=0.34} 0-1

[Event "44th Chess Olympiad Open 2022"]
[Site "Chennai"]
[Date "2022.08.06"]
[Round "8.8"]
[White "Gupta, Abhijeet"]
[Black "Terry, Renato"]
[Result "0-1"]
[WhiteElo "2627"]
[BlackElo "2502"]
[Annotator "TA"]
[PlyCount "120"]
[EventDate "2022.??.??"]
[TimeControl "60"]

{[%evp 13,120,0,20,20,3,7,24,8,19,16,35,11,20,35,19,20,33,17,40,26,22,18,22,0,
24,31,27,27,25,36,46,0,0,4,2,0,0,0,0,0,0,0,0,0,0,0,0,0,0,0,0,0,0,0,0,0,0,0,0,0,
0,0,2,0,0,0,0,0,0,0,0,0,0,0,0,0,0,0,0,0,0,-16,-24,-399,0,0,0,0,0,0,0,0,0,0,0,0,
0,0,0,0,0,0,0,0,0,0,0,-29983,-29982]} 1. d4 {[%emt 0:00:11]} e6 {[%emt 0:00:52]
} 2. c4 {[%emt 0:00:27]} Bb4+ {[%emt 0:00:32]} 3. Nd2 {[%emt 0:00:23]} Nf6 {
[%emt 0:03:10]} 4. g3 {[%emt 0:02:45]} O-O {[%emt 0:08:58]} 5. Bg2 {[%emt 0:00:
00]} d5 {[%emt 0:00:12]} 6. Ngf3 {[%emt 0:00:06]} b6 {[%emt 0:14:03]} 7. O-O {
[%emt 0:00:08]} Bb7 {[%emt 0:01:13]} 8. b3 {[%emt 0:18:09] E16: Queen's Indian:
4 g3 Bb7 5 Bg2 Bb4+.} Nbd7 {[%emt 0:16:57]} 9. Bb2 {[%emt 0:00:00]} Ne4 {
[%emt 0:02:47]} 10. a3 {[%emt 0:00:00] [#] White has an edge.} Bd6 $5 $146 {
[%emt 0:03:58] New and interesting.} ({Predecessor:} 10... Be7 11. Rc1 f5 12.
Ne1 c5 13. cxd5 exd5 14. dxc5 bxc5 15. Nd3 Bd6 16. b4 c4 {½-½ (43) Neto,H 
(2602)-Dronov,A (2676) ICCF email 2015}) 11. b4 {[%emt 0:00:00]} f5 {[%emt 0:
02:50]} 12. Ne5 {[%emt 0:03:35]} Nxe5 {[%emt 0:14:38]} (12... a5 {is
interesting.} 13. Nd3 c6 14. c5 bxc5 15. Nxe4 fxe4 16. Nxc5 Nxc5 17. bxc5 Bc7)
13. dxe5 {[%emt 0:00:22]} Be7 {[%emt 0:00:17]} 14. cxd5 {[%emt 0:13:22]} Nxd2 {
[%emt 0:00:08]} 15. Qxd2 {[%emt 0:00:06]} Bxd5 {[%emt 0:00:03]} 16. Bxd5 {
[%emt 0:00:15]} Qxd5 {[%emt 0:00:04]} 17. Qxd5 {[%emt 0:00:17]} exd5 {[%emt 0:
00:00]} 18. Rfd1 {[%emt 0:00:15]} Rfd8 {[%emt 0:01:06]} 19. b5 {[%emt 0:00:09]}
Rac8 {[%emt 0:02:50]} 20. Rac1 {[%emt 0:01:28]} c5 {[%emt 0:00:15]} 21. bxc6 {
[%emt 0:00:52]} Bc5 {[%emt 0:00:06]} 22. e6 {[%emt 0:05:05]} Rxc6 {[%emt 0:00:
00]} 23. e7 {[%emt 0:07:46]} Re8 {[%emt 0:00:03]} 24. Rxd5 {[%emt 0:13:02]}
Rxe7 {[%emt 0:01:44]} 25. Bd4 {[%emt 0:05:02][%cal Rd4c5]} g6 {[%emt 0:03:11]}
26. Bxc5 {[%emt 0:04:36]} Rec7 {[%emt 0:00:14]} 27. Kg2 {[%emt 0:18:05][%cal
Yc5b6]} Rxc5 {[%emt 0:00:38]} 28. Rcxc5 {[%emt 0:00:30]} bxc5 $11 {[%emt 0:00:
00] Endgame KR-KR} 29. Kf3 {[%emt 0:00:27]} Kf7 {[%emt 0:03:18]} 30. e4 {
[%emt 0:02:57]} Ke6 {[%emt 0:00:10]} 31. Ke3 {[%emt 0:00:54]} Rc6 {[%emt 0:00:
00]} 32. f4 {[%emt 0:02:06]} Ra6 {[%emt 0:01:03]} 33. Re5+ {[%emt 0:00:25]} Kf6
{[%emt 0:02:20]} 34. exf5 {[%emt 0:00:08]} gxf5 {[%emt 0:01:30]} (34... Rxa3+
35. Ke4 $14) 35. Rxc5 {[%emt 0:00:08]} Rxa3+ {[%emt 0:00:01]} 36. Kd4 {[%emt 0:
00:07]} Ra2 {[%emt 0:02:00]} 37. Rc6+ {[%emt 0:00:28]} Kg7 {[%emt 0:00:00]} 38.
h4 {[%emt 0:03:38]} Ra3 {[%emt 0:01:53]} 39. Ke5 {[%emt 0:01:01]} Ra5+ {
[%emt 0:00:09]} 40. Ke6 {[%emt 0:00:04]} Kg6 {[%emt 0:00:50]} 41. Rc8 {[%emt 0:
30:28]} Ra6+ {[%emt 0:31:01]} 42. Ke5 {[%emt 0:00:00]} Ra5+ {[%emt 0:00:00]}
43. Ke6 {[%emt 0:00:00]} Ra6+ {[%emt 0:00:00]} 44. Ke7 {[%emt 0:00:00]} Kh5 {
[%emt 0:00:00]} 45. Rf8 {[%emt 0:00:00]} Kg4 {[%emt 0:00:00]} 46. h5 {[%emt 0:
00:00]} h6 {[%emt 0:00:00]} ({Much less strong is} 46... Kxh5 47. Rxf5+ Kg6 48.
Rg5+ Kh6 49. Kf7 $16) 47. Kd7 {[%emt 0:00:00]} Rb6 {[%emt 0:00:00]} ({Much
worse is} 47... Kxg3 $6 48. Rxf5 Kg4 49. Rc5 $17) 48. Kc7 $2 {[%emt 0:00:00]} (
48. Ke7 $11 {and White has nothing to worry.}) 48... Rb3 $2 {[%emt 0:00:00]} (
48... Kxh5 $19 {...Kg4 is the strong threat.} 49. Rxf5+ Kg4) 49. Rg8+ $1 {
[%emt 0:00:00]} Kxh5 {[%emt 0:00:00]} 50. Kd6 $1 {[%emt 0:00:00]} Re3 {[%emt 0:
00:00] [#] And now ...a5 would win.} 51. g4+ $1 {[%emt 0:00:00]} fxg4 {[%emt 0:
00:00]} 52. f5 {[%emt 0:00:00]} Rf3 {[%emt 0:00:00]} (52... g3 $5 53. f6 Rd3+
54. Ke5 Rf3 $11) 53. Ke6 {[%emt 0:00:00]} Kh4 {[%emt 0:00:00]} (53... a5 $5 54.
f6 Kh4 $11) 54. f6 {[%emt 0:00:00]} g3 {[%emt 0:00:52] Hoping for ...Kh3.} 55.
f7 {[%emt 0:00:00]} h5 {[%emt 0:02:05] aiming for ...Kh3.} 56. f8=Q {[%emt 0:
00:30]} Rxf8 {[%emt 0:00:05]} 57. Rxf8 {[%emt 0:00:03]} g2 {[%emt 0:00:06]} 58.
Rg8 {[%emt 0:00:07]} Kh3 {[%emt 0:00:04] Strongly threatening ...h4.} 59. Kf5 {
[%emt 0:00:08]} h4 {[%emt 0:00:32] ( -> ...Kh2)} (59... Kh2 $5 60. Rh8 g1=R $11
) 60. Kf4 $2 {[%emt 0:00:13] [#]} (60. Rg4 $11 Kh2 61. Rxh4+ Kg3 62. Rg4+ Kh2
63. Rg8) 60... Kh2 {[%emt 0:00:04] Weighted Error Value: White=0.31/Black=0.12
(very precise)} 0-1

[Event "44th Chess Olympiad Open 2022"]
[Site "Chennai"]
[Date "2022.08.06"]
[Round "8.8"]
[White "Ganguly, Surya Shekhar"]
[Black "Cordova, Emilio"]
[Result "0-1"]
[WhiteElo "2608"]
[BlackElo "2549"]
[Annotator "TA"]
[PlyCount "74"]
[EventDate "2022.??.??"]
[TimeControl "60"]

{[%evp 16,74,36,39,37,36,43,39,39,37,52,31,54,31,33,45,61,49,29,27,64,61,74,0,
36,41,38,34,51,26,80,61,86,82,119,67,70,53,152,144,185,0,0,0,0,0,0,0,0,-575,
-569,-531,-534,-557,-555,-1257,-1186,-29964,-678,-931,-924]} 1. e4 {[%emt 0:00:
00]} c5 {[%emt 0:00:14]} 2. Nf3 {[%emt 0:00:07]} Nc6 {[%emt 0:00:27]} 3. d4 {
[%emt 0:00:07]} cxd4 {[%emt 0:00:08]} 4. Nxd4 {[%emt 0:00:06]} Nf6 {[%emt 0:00:
00]} 5. Nc3 {[%emt 0:00:05]} d6 {[%emt 0:00:23]} 6. Bg5 {[%emt 0:00:09]} e6 {
[%emt 0:00:21]} 7. Qd3 {[%emt 0:00:14]} Bd7 $1 {[%emt 0:00:27] outshines the
older 7...a6.} 8. O-O-O {[%emt 0:00:17]} a6 {[%emt 0:00:16]} 9. f4 {[%emt 0:00:
09]} Be7 {[%emt 0:01:57] B62: Sicilian: Richter-Rauzer: 6...e6: Unusual White
7th moves.} 10. Nf3 {[%emt 0:01:09]} h6 {[%emt 0:04:57]} 11. Bxf6 {[%emt 0:07:
47]} gxf6 {[%emt 0:00:30] White is slightly better.} 12. Kb1 {[%emt 0:07:19] 
[#]} Qc7 $146 {[%emt 0:12:32]} ({Predecessor:} 12... Qa5 13. Qe3 Qc5 14. Qe1 b5
15. e5 dxe5 16. Ne4 Qb6 17. fxe5 fxe5 18. Qg3 O-O-O 19. Nxe5 Nxe5 20. Qxe5 {
0-1 (44) Garrido Outon,A (2436)-Fier,A (2567) Gijon 2022}) 13. g3 {[%emt 0:03:
43]} O-O-O {[%emt 0:01:11]} 14. Bh3 {[%emt 0:01:17]} Kb8 {[%emt 0:00:17]} 15.
Rhe1 {[%emt 0:01:42]} Bc8 {[%emt 0:00:20]} 16. Qe3 {[%emt 0:05:38]} Na5 {
[%emt 0:05:38][%cal Yc6a5,Ya5c4,Yc4a3]} 17. Nd4 {[%emt 0:06:05]} Rhe8 {[%emt 0:
10:33]} 18. Qf3 {[%emt 0:12:47]} Bf8 {[%emt 0:00:00][%cal Yd6d5]} 19. Qh5 {
[%emt 0:02:28]} ({White should try} 19. Bf1 $16) 19... Nc4 {[%emt 0:01:55]
[%cal Yd6d5]} (19... d5 $5) 20. Bf1 {[%emt 0:03:01]} d5 {[%emt 0:22:15]} 21.
exd5 {[%emt 0:02:30] Strongly threatening Bxc4.} Na3+ {[%emt 0:05:01]} 22. Kc1
{[%emt 0:01:40]} Bb4 {[%emt 0:00:27]} (22... e5 $1 $11 {keeps the balance.} 23.
Nb3 exf4) 23. Re3 $16 {[%emt 0:06:19]} (23. bxa3 $2 Bxc3 24. Re3 Qa5 25. Rxc3
Qxc3 $19) 23... e5 {[%emt 0:03:14]} 24. fxe5 {[%emt 0:01:25]} Rxe5 {[%emt 0:08:
54]} 25. Qxh6 {[%emt 0:01:51]} (25. Qf3 $1 $16) 25... Bg4 $1 $14 {[%emt 0:00:
19]} 26. Be2 {[%emt 0:03:05]} Bxe2 {[%emt 0:00:00]} (26... Nc4 $1 $14 27. Rxe5
(27. Bxg4 $2 Nxe3 28. Nde2 Bxc3 $19) 27... fxe5 28. Bxg4 Bxc3 29. bxc3 Qa5) 27.
Ncxe2 $16 {[%emt 0:02:27] Pair of Knights!} Rde8 {[%emt 0:04:21][%cal Yd8e8,
Ye8e5,Ye5e2,Ye2e6,Ye6c6]} 28. bxa3 $2 {[%emt 0:06:15]} Bf8 $11 {[%emt 0:00:49]}
29. Nc6+ $1 {[%emt 0:01:14]} Qxc6 $1 {[%emt 0:01:31]} 30. Qf4 {[%emt 0:00:58]}
(30. dxc6 $2 {too greedy.} Bxh6 31. Kb2 Bxe3 $19) 30... Qd6 $40 {[%emt 0:00:05]
Black is up to no good.} 31. Rxe5 {[%emt 0:01:28]} Rxe5 {[%emt 0:00:54]} 32.
Qc4 {[%emt 0:01:00]} (32. Nd4 $11) 32... Qxa3+ $19 {[%emt 0:00:49]} 33. Kb1 {
[%emt 0:00:12] [#]} Rxe2 {[%emt 0:00:35]} 34. d6 {[%emt 0:01:12] Threatens to
win with d7.} (34. Qxe2 Qb4+) 34... Re6 {[%emt 0:00:28]} 35. Qc7+ {[%emt 0:02:
14]} Ka7 {[%emt 0:00:05]} 36. d7 {[%emt 0:00:02]} Be7 {[%emt 0:00:15]} (36...
Re4 $142 37. c4 Re2 38. Qb6+ Kxb6 39. d8=Q+ Ka7 40. Rd2 Re1+ 41. Rd1 Qb4+ 42.
Kc2 Qa4+ 43. Kb2 Ba3+ 44. Kc3 Qb4+ 45. Kd3 Rxd1+ 46. Ke2 Rxd8 47. Kf3 Qxc4 48.
g4 Rd3+ 49. Kg2 Qxa2+ 50. Kh1 Rd1#) 37. Ka1 {[%emt 0:00:35]} Rc6 {[%emt 0:00:
30] Weighted Error Value: White=0.81/Black=0.34} 0-1